[Event "16th Spilimbergo Open 2018"]
[Site "Spilimbergo"]
[Date "2018.08.10"]
[Round "1.9"]
[White "Krysa, Leandro"]
[Black "Della Pietra, Andrea"]
[Result "1-0"]
[ECO "E11"]
[WhiteElo "2523"]
[BlackElo "2212"]
[Annotator "ChessBase"]
[PlyCount "69"]
[EventDate "2018.08.10"]
[EventType "swiss"]
[EventCountry "ITA"]
[SourceTitle "playchess.com"]
[Source "ChessBase"]
[SourceQuality "1"]
[TimeControl "5400+30"]

1. d4 {[%emt 0:00:30]} Nf6 {[%emt 0:00:30]} 2. c4 {[%emt 0:00:00]} Nc6 {[%emt 0:00:30]} 3. Nf3 {[%emt 0:00:00]} e6 {[%emt 0:00:30]} 4. g3 {[%emt 0:00:30]} Bb4+ {[%emt 0:00:30]} 5. Bd2 {[%emt 0:00:30]} Qe7 {[%emt 0:00:30]} 6. e3 {[%emt 0:00:30]} Bxd2+ {[%emt 0:08:30]} 7. Qxd2 {[%emt 0:00:30]} Ne4 {[%emt 0:04:30]} 8. Qc2 {[%emt 0:03:30]} Qb4+ {[%emt 0:02:30]} 9. Nbd2 {[%emt 0:00:30]} Nxd2 {[%emt 0:00:30]} 10. Nxd2 {[%emt 0:01:30]} Qe7 {[%emt 0:01:30]} 11. Bg2 {[%emt 0:01:30]} O-O {[%emt 0:03:30]} 12. O-O {[%emt 0:00:30]} d6 {[%emt 0:11:30]} 13. f4 {[%emt 0:00:30]} a5 {[%emt 0:20:30]} 14. Qc3 {[%emt 0:01:30]} Bd7 {[%emt 0:04:30]} 15. Rae1 {[%emt 0:02:30]} e5 {[%emt 0:09:30]} 16. fxe5 {[%emt 0:06:30]} dxe5 {[%emt 0:00:30]} 17. c5 {[%emt 0:04:30]} Rfe8 {[%emt 0:05:30]} 18. d5 {[%emt 0:04:30]} Nb4 {[%emt 0:01:30]} 19. a3 {[%emt 0:05:30]} Na6 {[%emt 0:00:00]} 20. b4 {[%emt 0:03:30]} axb4 {[%emt 0:00:00]} 21. axb4 {[%emt 0:00:00]} Bb5 {[%emt 0:01:30]} 22. Rf2 {[%emt 0:02:00]} Rac8 {[%emt 0:09:57]} 23. Ra1 {[%emt 0:06:30]} b6 {[%emt 0:00:58]} 24. Bf1 {[%emt 0:02:30]} Bxf1 {[%emt 0:01:25]} 25. Rfxf1 {[%emt 0:06:30]} Nb8 {[%emt 0:05:49]} 26. c6 {[%emt 0:14:30]} e4 {[%emt 0:00:11]} 27. Qc4 {[%emt 0:11:30]} Rcd8 {[%emt 0:03:11]} 28. Rad1 {[%emt 0:02:22]} Qe5 {[%emt 0:02:28]} 29. Nb1 {[%emt 0:02:37]} Rd6 {[%emt 0:00:12]} 30. Nc3 {[%emt 0:01:03]} Red8 {[%emt 0:01:05]} 31. Rd4 {[%emt 0:00:38]} f5 {[%emt 0:00:49]} 32. Nb5 {[%emt 0:01:14]} Rg6 {[%emt 0:00:06]} 33. d6+ {[%emt 0:01:00]} Kh8 {[%emt 0:00:17]} 34. dxc7 {[%emt 0:01:06]} Rxg3+ {[%emt 0:01:19]} 35. Kh1 {[%emt 0:00:07]} 1-0

[Event "16th Spilimbergo Open 2018"]
[Site "Spilimbergo"]
[Date "2018.08.10"]
[Round "1.10"]
[White "Podetti, Davide"]
[Black "Rombaldoni, Denis"]
[Result "1/2-1/2"]
[ECO "A46"]
[WhiteElo "2204"]
[BlackElo "2508"]
[Annotator "RC"]
[PlyCount "176"]
[EventDate "2018.08.10"]
[EventType "swiss"]
[EventCountry "ITA"]
[SourceTitle "playchess.com"]
[Source "ChessBase"]
[SourceQuality "1"]
[TimeControl "5400+30"]

1. Nf3 {[%emt 0:00:30]} d6 {[%emt 0:00:30]} 2. d4 {[%emt 0:01:30]} Nf6 {[%emt 0:00:30]} 3. Nc3 {[%emt 0:03:30]} Bf5 {[%emt 0:04:30]} 4. Bg5 {[%emt 0:05:30]} Nbd7 {[%emt 0:18:30]} 5. Nh4 {[%emt 0:05:30]} Bg6 {[%emt 0:01:30]} 6. Nxg6 {[%emt 0:02:30]} hxg6 {[%emt 0:00:00]} 7. e4 {[%emt 0:00:30]} e5 {[%emt 0:00:00]} 8. Be2 {[%emt 0:03:30]} Be7 {[%emt 0:00:30]} 9. Bxf6 {[%emt 0:01:30]} Bxf6 {[%emt 0:02:30]} 10. d5 {[%emt 0:01:30]} Bg5 {[%emt 0:00:30]} 11. Qd3 {[%emt 0:00:30]} a6 {[%emt 0:04:30]} 12. g3 {[%emt 0:07:30]} Nc5 {[%emt 0:06:30]} 13. Qf3 {[%emt 0:00:30]} a5 {[%emt 0:00:30]} 14. h4 {[%emt 0:01:30]} Bh6 {[%emt 0:00:30]} 15. Bb5+ {[%emt 0:05:30]} Ke7 {[%emt 0:02:30]} 16. Qg4 {[%emt 0:19:30]} Rf8 {[%emt 0:11:30]} 17. h5 {[%emt 0:01:30]} gxh5 {[%emt 0:21:30]} 18. Rxh5 {[%emt 0:02:30]} Qc8 {[%emt 0:00:30]} 19. Qh4+ {[%emt 0:03:30]} f6 {[%emt 0:01:30]} 20. f4 {[%emt 0:00:30]} c6 {[%emt 0:04:48]} 21. Be2 {[%emt 0:13:10]} Qc7 {[%emt 0:02:19]} 22. Rd1 {[%emt 0:01:15]} exf4 {[%emt 0:04:45]} 23. gxf4 {[%emt 0:01:34]} Qb6 {[%emt 0:00:33]} 24. dxc6 {[%emt 0:00:44]} bxc6 {[%emt 0:01:18]} 25. e5 {[%emt 0:00:30]} Ne6 {[%emt 0:01:53]} 26. exd6+ {[%emt 0:01:37]} Kd7 {[%emt 0:00:03]} 27. Bg4 {[%emt 0:02:22]} Rae8 {[%emt 0:00:32]} 28. Ne2 {[%emt 0:01:28]} Kd8 {[%emt 0:03:43]} 29. Qf2 {[%emt 0:00:59]} Qa6 {[%emt 0:00:52]} 30. d7 {[%emt 0:01:34]} Re7 {[%emt 0:00:01]} 31. Bxe6 {[%emt 0:00:52]} Rxe6 {[%emt 0:00:01]} 32. c4 {[%emt 0:00:16]} Rf7 {[%emt 0:00:34]} 33. Qc5 {[%emt 0:00:30]} Rxd7 {[%emt 0:01:18]} 34. Rxd7+ {[%emt 0:04:01]} Kxd7 {[%emt 0:00:33]} 35. Kf1 {[%emt 0:00:30]} Qb7 {[%emt 0:01:27]} 36. b3 {[%emt 0:00:39]} Qc7 {[%emt 0:00:16]} 37. Qxa5 {[%emt 0:01:51]} Bxf4 {[%emt 0:00:31]} 38. Qf5 {[%emt 0:00:05]} Be3 {[%emt 0:01:42]} 39. Rh7 {[%emt 0:00:51]} Qd6 {[%emt 0:00:01]} 40. Rxg7+ {[%emt 0:00:09]} Kc8 {[%emt 0:00:02]} 41. Kg2 {[%emt 0:00:58]} Bh6 {[%emt 0:01:43]} 42. Nd4 {[%emt 0:00:46]} Bxg7 {[%emt 0:00:12]} 43. Qxe6+ {[%emt 0:00:11]} Qxe6 {[%emt 0:00:03]} 44. Nxe6 {[%emt 0:00:01]} Bh6 {[%emt 0:00:14]} 45. Kf3 {[%emt 0:00:05]} Kd7 {[%emt 0:01:17]} 46. Nd4 {[%emt 0:00:10]} Bd2 {[%emt 0:00:56]} 47. Ke4 {[%emt 0:00:09]} Kd6 {[%emt 0:00:04]} 48. Kf5 {[%emt 0:00:46]} Kc5 {[%emt 0:00:50]} 49. Nc2 {[%emt 0:00:40]} Bc3 {[%emt 0:00:10]} 50. Ke4 {[%emt 0:00:06]} Be5 {[%emt 0:00:13]} 51. Ne1 {[%emt 0:00:13]} Bc3 {[%emt 0:01:10]} 52. Nd3+ {[%emt 0:00:09]} Kd6 {[%emt 0:00:34]} 53. c5+ {[%emt 0:00:38]} Kd7 {[%emt 0:01:10]} 54. a4 {[%emt 0:00:13]} Ke6 {[%emt 0:00:34]} 55. Nf4+ {[%emt 0:00:06]} Kd7 {[%emt 0:01:04]} 56. Kf5 {[%emt 0:00:06]} Ke7 {[%emt 0:00:04]} 57. Nd3 {[%emt 0:00:05]} Kd7 {[%emt 0:00:44]} 58. b4 {[%emt 0:00:11]} Ke7 {[%emt 0:00:39]} 59. a5 {[%emt 0:01:05]} Kd7 {[%emt 0:00:18]} 60. a6 {[%emt 0:00:16]} Kc7 {[%emt 0:00:04]} 61. Ke6 {[%emt 0:00:07]} Bd4 {[%emt 0:01:40]} 62. a7 {[%emt 0:00:13]} Kb7 {[%emt 0:00:03]} 63. Kd7 {[%emt 0:00:18]} Kxa7 {[%emt 0:00:14]} 64. Kxc6 {[%emt 0:00:05]} f5 {[%emt 0:00:12]} 65. b5 {[%emt 0:00:16]} Bg1 {[%emt 0:01:19]} 66. Ne5 {[%emt 0:01:14]} Bh2 {[%emt 0:00:30]} 67. Kd5 {[%emt 0:01:35]} Kb7 {[%emt 0:00:37]} 68. Nc4 {[%emt 0:00:52]} f4 {[%emt 0:00:43]} 69. c6+ {[%emt 0:00:22]} Kb8 {[%emt 0:00:09]} 70. Ke4 {[%emt 0:01:34]} Kc7 {[%emt 0:00:05]} 71. Kd5 {[%emt 0:00:22]} f3 {[%emt 0:00:21]} 72. b6+ {[%emt 0:00:13]} Kb8 {[%emt 0:00:03]} 73. Ke6 {[%emt 0:01:07]} f2 {[%emt 0:00:11]} 74. Ne3 {[%emt 0:04:54]} Kc8 {[%emt 0:00:17]} 75. Kd5 {[%emt 0:01:08]} Bf4 {[%emt 0:00:14]} 76. Nf1 {[%emt 0:00:07]} Kb8 {[%emt 0:00:56]} 77. Ke4 {[%emt 0:01:37]} Bd6 {[%emt 0:00:34]} 78. Kd4 {[%emt 0:00:07]} Bf4 {[%emt 0:00:20]} 79. Kc4 {[%emt 0:00:09]} Bd6 {[%emt 0:00:23]} 80. Kb5 {[%emt 0:00:12]} Bf4 {[%emt 0:00:15]} 81. Kb4 {[%emt 0:00:46]} Bd6+ {[%emt 0:00:12]} 82. Kc4 {[%emt 0:00:18]} Bf4 {[%emt 0:00:14]} 83. Kd5 {[%emt 0:00:13]} Kc8 {[%emt 0:01:15]} 84. Ke6 {[%emt 0:00:22]} Kd8 {[%emt 0:01:00]} 85. b7 {[%emt 0:01:40]} Kc7 {[%emt 0:00:23]} 86. Kd5 {[%emt 0:00:17]} Kb6 {[%emt 0:00:56]} 87. Ke4 {[%emt 0:00:43]} Kxc6 {[%emt 0:00:05]} 88. Kxf4 {[%emt 0:00:06]} Kxb7 {[%emt 0:00:04]} 1/2-1/2

[Event "16th Spilimbergo Open 2018"]
[Site "Spilimbergo"]
[Date "2018.08.10"]
[Round "1.12"]
[White "Locci, Damiano"]
[Black "Godena, Michele"]
[Result "0-1"]
[ECO "A21"]
[WhiteElo "2185"]
[BlackElo "2502"]
[Annotator "ChessBase"]
[PlyCount "52"]
[EventDate "2018.08.10"]
[EventType "swiss"]
[EventCountry "ITA"]
[SourceTitle "playchess.com"]
[Source "ChessBase"]
[SourceQuality "1"]
[TimeControl "5400+30"]

1. c4 {[%emt 0:00:30]} e5 {[%emt 0:00:30]} 2. Nc3 {[%emt 0:00:00]} Bb4 {[%emt 0:00:00]} 3. Nd5 {[%emt 0:00:00]} Bc5 {[%emt 0:02:00]} 4. e3 {[%emt 0:00:30]} Nf6 {[%emt 0:00:30]} 5. d4 {[%emt 0:00:30]} Nxd5 {[%emt 0:01:30]} 6. dxc5 {[%emt 0:00:00]} Nf6 {[%emt 0:08:30]} 7. b4 {[%emt 0:00:00]} Nc6 {[%emt 0:35:30]} 8. b5 {[%emt 0:13:30]} Ne7 {[%emt 0:01:30]} 9. Ne2 {[%emt 0:04:30]} b6 {[%emt 0:02:30]} 10. Bb2 {[%emt 0:03:30]} Ng6 {[%emt 0:03:30]} 11. cxb6 {[%emt 0:03:30]} axb6 {[%emt 0:00:30]} 12. Nc3 {[%emt 0:00:30]} Bb7 {[%emt 0:04:30]} 13. Qc2 {[%emt 0:09:30]} Qe7 {[%emt 0:04:30]} 14. a4 {[%emt 0:06:30]} Nh4 {[%emt 0:17:13]} 15. Ba3 {[%emt 0:04:30]} d6 {[%emt 0:00:06]} 16. e4 {[%emt 0:13:30]} O-O {[%emt 0:00:10]} 17. f3 {[%emt 0:01:30]} Nd7 {[%emt 0:02:38]} 18. Bd3 {[%emt 0:03:30]} Qg5 {[%emt 0:02:13]} 19. Ra2 {[%emt 0:03:30]} Qe3+ {[%emt 0:05:08]} 20. Kf1 {[%emt 0:00:00]} Nc5 {[%emt 0:03:21]} 21. Be2 {[%emt 0:09:00]} f5 {[%emt 0:00:31]} 22. Bc1 {[%emt 0:01:30]} Qd4 {[%emt 0:00:14]} 23. Nd1 {[%emt 0:00:30]} fxe4 {[%emt 0:02:43]} 24. Bb2 {[%emt 0:02:37]} exf3 {[%emt 0:00:20]} 25. Bxd4 {[%emt 0:00:05]} fxg2+ {[%emt 0:00:08]} 26. Kg1 {[%emt 0:00:05]} gxh1=Q# {[%emt 0:00:07]} 0-1

[Event "16th Spilimbergo Open 2018"]
[Site "Spilimbergo"]
[Date "2018.08.10"]
[Round "1.16"]
[White "Shome Shiv"]
[Black "Sonis, Francesco"]
[Result "1/2-1/2"]
[ECO "C54"]
[WhiteElo "2161"]
[BlackElo "2468"]
[Annotator "ChessBase"]
[PlyCount "144"]
[EventDate "2018.08.10"]
[EventType "swiss"]
[EventCountry "ITA"]
[SourceTitle "playchess.com"]
[Source "ChessBase"]
[SourceQuality "1"]
[TimeControl "5400+30"]

1. e4 {[%emt 0:00:30]} e5 {[%emt 0:00:30]} 2. Nf3 {[%emt 0:00:00]} Nc6 {[%emt 0:00:00]} 3. Bc4 {[%emt 0:00:00]} Bc5 {[%emt 0:00:00]} 4. d3 {[%emt 0:00:30]} Nf6 {[%emt 0:00:30]} 5. O-O {[%emt 0:00:00]} O-O {[%emt 0:00:30]} 6. c3 {[%emt 0:00:00]} d6 {[%emt 0:01:30]} 7. Nbd2 {[%emt 0:00:30]} a6 {[%emt 0:00:30]} 8. a4 {[%emt 0:00:30]} Be6 {[%emt 0:03:30]} 9. Bb3 {[%emt 0:03:30]} Ba7 {[%emt 0:03:30]} 10. Nc4 {[%emt 0:02:30]} h6 {[%emt 0:04:30]} 11. Ne3 {[%emt 0:07:30]} Ne7 {[%emt 0:05:30]} 12. Bc2 {[%emt 0:04:30]} c5 {[%emt 0:05:30]} 13. d4 {[%emt 0:04:30]} cxd4 {[%emt 0:00:30]} 14. cxd4 {[%emt 0:00:00]} Qc7 {[%emt 0:04:30]} 15. d5 {[%emt 0:02:00]} Bd7 {[%emt 0:00:30]} 16. Bd3 {[%emt 0:01:30]} Ng6 {[%emt 0:05:30]} 17. g3 {[%emt 0:12:30]} Bh3 {[%emt 0:03:30]} 18. Re1 {[%emt 0:00:30]} Ng4 {[%emt 0:00:30]} 19. Nxg4 {[%emt 0:10:30]} Bxg4 {[%emt 0:00:30]} 20. Be3 {[%emt 0:00:30]} Bxe3 {[%emt 0:01:30]} 21. Rxe3 {[%emt 0:00:00]} Qb6 {[%emt 0:04:30]} 22. Be2 {[%emt 0:02:00]} Bxf3 {[%emt 0:07:30]} 23. Bxf3 {[%emt 0:02:30]} Qxb2 {[%emt 0:01:30]} 24. Rb3 {[%emt 0:01:30]} Qd4 {[%emt 0:00:30]} 25. Rxb7 {[%emt 0:01:30]} Rfb8 {[%emt 0:01:30]} 26. Rab1 {[%emt 0:02:30]} Rxb7 {[%emt 0:03:30]} 27. Rxb7 {[%emt 0:00:30]} Rc8 {[%emt 0:03:30]} 28. Kg2 {[%emt 0:09:30]} Rc4 {[%emt 0:04:30]} 29. a5 {[%emt 0:02:30]} Qxd1 {[%emt 0:07:30]} 30. Bxd1 {[%emt 0:00:30]} Rxe4 {[%emt 0:00:00]} 31. Rb6 {[%emt 0:00:30]} Rd4 {[%emt 0:05:00]} 32. Bb3 {[%emt 0:00:30]} e4 {[%emt 0:01:30]} 33. Rxa6 {[%emt 0:02:30]} Ne5 {[%emt 0:02:30]} 34. Ra8+ {[%emt 0:04:30]} Kh7 {[%emt 0:00:30]} 35. Rc8 {[%emt 0:00:30]} Rd3 {[%emt 0:07:24]} 36. a6 {[%emt 0:00:30]} Rxb3 {[%emt 0:00:07]} 37. a7 {[%emt 0:00:30]} Ra3 {[%emt 0:00:00]} 38. a8=Q {[%emt 0:00:00]} Rxa8 {[%emt 0:00:00]} 39. Rxa8 {[%emt 0:00:00]} f5 {[%emt 0:00:05]} 40. Re8 {[%emt 0:01:30]} Nc4 {[%emt 0:01:31]} 41. Re6 {[%emt 0:00:00]} g6 {[%emt 0:02:42]} 42. Kf1 {[%emt 0:01:00]} Kg7 {[%emt 0:00:21]} 43. Ke2 {[%emt 0:00:30]} Kf7 {[%emt 0:01:05]} 44. f3 {[%emt 0:01:30]} exf3+ {[%emt 0:00:32]} 45. Kxf3 {[%emt 0:00:30]} Nd2+ {[%emt 0:01:06]} 46. Kf4 {[%emt 0:00:30]} Ne4 {[%emt 0:00:49]} 47. g4 {[%emt 0:07:46]} Nf6 {[%emt 0:00:02]} 48. Rxd6 {[%emt 0:00:07]} Nxg4 {[%emt 0:00:20]} 49. h3 {[%emt 0:01:55]} Nf2 {[%emt 0:00:02]} 50. h4 {[%emt 0:02:53]} Nd3+ {[%emt 0:02:33]} 51. Ke3 {[%emt 0:00:12]} Ne5 {[%emt 0:01:57]} 52. Re6 {[%emt 0:00:34]} Nd7 {[%emt 0:01:44]} 53. Kd4 {[%emt 0:00:26]} Nf6 {[%emt 0:01:26]} 54. Re1 {[%emt 0:00:54]} f4 {[%emt 0:01:09]} 55. Ke5 {[%emt 0:00:41]} g5 {[%emt 0:00:19]} 56. hxg5 {[%emt 0:00:09]} hxg5 {[%emt 0:00:04]} 57. d6 {[%emt 0:00:09]} f3 {[%emt 0:02:12]} 58. Kf5 {[%emt 0:00:49]} Nd5 {[%emt 0:03:00]} 59. Kxg5 {[%emt 0:03:17]} f2 {[%emt 0:00:21]} 60. Rf1 {[%emt 0:00:28]} Ke6 {[%emt 0:00:01]} 61. Rxf2 {[%emt 0:00:20]} Kxd6 {[%emt 0:00:03]} 62. Kf5 {[%emt 0:00:06]} Ne7+ {[%emt 0:00:20]} 63. Ke4 {[%emt 0:00:07]} Ke6 {[%emt 0:00:07]} 64. Ra2 {[%emt 0:00:04]} Nc6 {[%emt 0:00:03]} 65. Rd2 {[%emt 0:00:06]} Ne7 {[%emt 0:00:04]} 66. Rh2 {[%emt 0:00:27]} Ng8 {[%emt 0:00:05]} 67. Rf2 {[%emt 0:00:19]} Ne7 {[%emt 0:00:04]} 68. Re2 {[%emt 0:00:05]} Kd6 {[%emt 0:00:26]} 69. Rd2+ {[%emt 0:00:09]} Ke6 {[%emt 0:00:03]} 70. Ra2 {[%emt 0:00:07]} Nc6 {[%emt 0:00:10]} 71. Ra6 {[%emt 0:00:11]} Kd6 {[%emt 0:00:06]} 72. Rxc6+ {[%emt 0:00:03]} Kxc6 {[%emt 0:00:02]} 1/2-1/2